[Event "GER-ch Blitz 2019"]
[Site "Magdeburg"]
[Date "2019.05.25"]
[Round "2.15"]
[White "Braeuning, Rudolf Wilhelm"]
[Black "Voege, Tobias"]
[Result "0-1"]
[ECO "B22"]
[WhiteElo "2285"]
[BlackElo "2294"]
[Annotator "NA"]
[PlyCount "89"]
[EventDate "2019.05.25"]
[EventType "tourn"]
[EventCountry "GER"]
[Tiebreak "Number of wins+Number of black wins"]
[SourceTitle "playchess.com"]
[Source "ChessBase"]
[SourceQuality "1"]
[TimeControl "180+2"]

1. e4 {[%emt 0:00:00]} c5 {[%emt 0:00:00]} 2. c3 {[%emt 0:00:01]} g6 {[%emt 0:
00:00]} 3. d4 {[%emt 0:00:01]} cxd4 {[%emt 0:00:00]} 4. cxd4 {[%emt 0:00:02]}
d5 {[%emt 0:00:01]} 5. exd5 {[%emt 0:00:01]} Bg7 {[%emt 0:00:03]} 6. Nc3 {
[%emt 0:00:02]} Nf6 {[%emt 0:00:01]} 7. Bc4 {[%emt 0:00:01]} O-O {[%emt 0:00:
02]} 8. Nge2 {[%emt 0:00:00]} Nbd7 {[%emt 0:00:02]} 9. Nf4 {[%emt 0:00:01]} a6
{[%emt 0:00:31]} 10. a4 {[%emt 0:00:05]} Nb6 {[%emt 0:00:31]} 11. Bb3 {[%emt 0:
00:01]} Bg4 {[%emt 0:00:03]} 12. f3 {[%emt 0:00:02]} Bd7 {[%emt 0:00:15]} 13.
h4 {[%emt 0:00:12]} h5 {[%emt 0:00:10]} 14. g4 {[%emt 0:00:27]} hxg4 {[%emt 0:
00:15]} 15. h5 {[%emt 0:00:01]} g5 {[%emt 0:00:07]} 16. h6 {[%emt 0:00:09]}
gxf4 {[%emt 0:00:06]} 17. hxg7 {[%emt 0:00:03]} Kxg7 {[%emt 0:00:02]} 18. Bxf4
{[%emt 0:00:03]} Rh8 {[%emt 0:00:06]} 19. Kf2 {[%emt 0:00:23]} gxf3 {[%emt 0:
00:22]} 20. Be5 {[%emt 0:00:03]} Bg4 {[%emt 0:00:05]} 21. Qg1 {[%emt 0:00:10]}
Qd7 {[%emt 0:00:03]} 22. Qg3 {[%emt 0:00:23]} Qf5 {[%emt 0:00:19]} 23. Rag1 {
[%emt 0:00:12]} Rxh1 {[%emt 0:00:06]} 24. Rxh1 {[%emt 0:00:02]} Rg8 {[%emt 0:
00:12]} 25. d6 {[%emt 0:00:23]} Kf8 {[%emt 0:00:08]} 26. dxe7+ {[%emt 0:00:05]}
Kxe7 {[%emt 0:00:01]} 27. Bxf6+ {[%emt 0:00:14]} Qxf6 {[%emt 0:00:10]} 28. Qc7+
{[%emt 0:00:04]} Kf8 {[%emt 0:00:01]} 29. Qc5+ {[%emt 0:00:11]} Kg7 {[%emt 0:
00:06]} 30. Ne4 {[%emt 0:00:04]} Qg6 {[%emt 0:00:04]} 31. Qe5+ {[%emt 0:00:06]}
Kf8 {[%emt 0:00:01]} 32. Nf6 {[%emt 0:00:09]} Nd7 {[%emt 0:00:02]} 33. Nxd7+ {
[%emt 0:00:16]} Bxd7 {[%emt 0:00:01]} 34. Qc5+ {[%emt 0:00:01]} Ke8 {[%emt 0:
00:02]} 35. Re1+ {[%emt 0:00:02]} Be6 {[%emt 0:00:02]} 36. Bxe6 Qg2+ {[%emt 0:
00:02]} 37. Ke3 {[%emt 0:00:06]} fxe6 {[%emt 0:00:02]} 38. Kd3 {[%emt 0:00:04]}
Qg6+ {[%emt 0:00:02]} 39. Kc3 {[%emt 0:00:02]} Kf7 {[%emt 0:00:02]} 40. Qc7+ {
[%emt 0:00:01]} Kf6 {[%emt 0:00:01]} 41. Qe5+ {[%emt 0:00:01]} Kf7 {[%emt 0:00:
01]} 42. Qc7+ {[%emt 0:00:01]} Kf6 {[%emt 0:00:01]} 43. Qe5+ {[%emt 0:00:01]}
Ke7 {[%emt 0:00:02]} 44. Qc7+ {[%emt 0:00:00]} Kf8 {[%emt 0:00:01]} 45. Qd6+ {
[%emt 0:00:02]} 0-1

[Event "GER-ch Blitz 2019"]
[Site "Magdeburg"]
[Date "2019.05.25"]
[Round "3.2"]
[White "Schulze, Marc"]
[Black "Kopylov, Daniel"]
[Result "1-0"]
[ECO "A45"]
[WhiteElo "2220"]
[BlackElo "2263"]
[Annotator "NA"]
[PlyCount "89"]
[EventDate "2019.05.25"]
[EventType "tourn"]
[EventCountry "GER"]
[Tiebreak "Number of wins+Number of black wins"]
[SourceTitle "playchess.com"]
[Source "ChessBase"]
[SourceQuality "1"]
[TimeControl "180+2"]

1. d4 {[%emt 0:00:00]} Nf6 {[%emt 0:00:02]} 2. Bf4 {[%emt 0:00:01]} d5 {
[%emt 0:00:03]} 3. e3 {[%emt 0:00:01]} Bg4 {[%emt 0:00:02]} 4. Nf3 {[%emt 0:00:
05]} e6 {[%emt 0:00:02]} 5. c3 {[%emt 0:00:03]} Bd6 {[%emt 0:00:05]} 6. Bxd6 {
[%emt 0:00:06]} Qxd6 {[%emt 0:00:02]} 7. Nbd2 {[%emt 0:00:05]} Nbd7 {[%emt 0:
00:05]} 8. Bd3 {[%emt 0:00:11]} e5 {[%emt 0:00:05]} 9. dxe5 {[%emt 0:00:07]}
Nxe5 {[%emt 0:00:04]} 10. Be2 {[%emt 0:00:01]} h5 {[%emt 0:00:29]} 11. Nxe5 {
[%emt 0:00:12]} Qxe5 {[%emt 0:00:03]} 12. Qa4+ {[%emt 0:00:13]} c6 {[%emt 0:00:
14]} 13. Nf3 {[%emt 0:00:11]} Qe7 {[%emt 0:00:18]} 14. h3 {[%emt 0:00:04]} Bxf3
{[%emt 0:00:03]} 15. Bxf3 {[%emt 0:00:01]} h4 {[%emt 0:00:07]} 16. O-O {
[%emt 0:00:15]} Nd7 {[%emt 0:00:05]} 17. Qd4 {[%emt 0:00:12]} Qe5 {[%emt 0:00:
20]} 18. Rfe1 {[%emt 0:00:23]} a5 {[%emt 0:00:26]} 19. Rad1 {[%emt 0:00:06]}
Rh6 {[%emt 0:00:33]} 20. e4 {[%emt 0:00:09]} Qxd4 {[%emt 0:00:05]} 21. Rxd4 {
[%emt 0:00:02]} Re6 {[%emt 0:00:07]} 22. Kf1 {[%emt 0:00:07]} dxe4 {[%emt 0:00:
06]} 23. Rdxe4 {[%emt 0:00:02]} Rxe4 {[%emt 0:00:03]} 24. Rxe4+ {[%emt 0:00:02]
} Kd8 {[%emt 0:00:05]} 25. Rxh4 {[%emt 0:00:01]} Kc7 {[%emt 0:00:02]} 26. Re4 {
[%emt 0:00:06]} Kd6 27. Bd1 {[%emt 0:00:05]} Nf6 {[%emt 0:00:06]} 28. Rd4+ {
[%emt 0:00:00]} Ke7 {[%emt 0:00:02]} 29. g4 {[%emt 0:00:06]} Rh8 {[%emt 0:00:
04]} 30. Kg2 {[%emt 0:00:02]} Nh7 {[%emt 0:00:02]} 31. Re4+ {[%emt 0:00:04]}
Kd6 {[%emt 0:00:03]} 32. h4 {[%emt 0:00:11]} Nf6 {[%emt 0:00:01]} 33. Rd4+ {
[%emt 0:00:00]} Ke7 {[%emt 0:00:01]} 34. g5 {[%emt 0:00:01]} Nd7 {[%emt 0:00:
01]} 35. f3 {[%emt 0:00:05]} c5 {[%emt 0:00:02]} 36. Re4+ {[%emt 0:00:03]} Kd6
{[%emt 0:00:00]} 37. Bb3 {[%emt 0:00:01]} f6 {[%emt 0:00:01]} 38. Re6+ {
[%emt 0:00:01]} Kc7 {[%emt 0:00:01]} 39. Re7 {[%emt 0:00:02]} fxg5 {[%emt 0:00:
06]} 40. Ba4 {[%emt 0:00:00]} gxh4 {[%emt 0:00:08]} 41. Rxd7+ Kb6 42. Rxg7 {
[%emt 0:00:02]} h3+ {[%emt 0:00:02]} 43. Kh1 Rf8 44. Rg3 {[%emt 0:00:05]} Rd8 {
[%emt 0:00:01]} 45. Rg2 {[%emt 0:00:00]} 1-0

[Event "GER-ch Blitz 2019"]
[Site "Magdeburg"]
[Date "2019.05.25"]
[Round "3.3"]
[White "Schmaltz, Roland"]
[Black "Svane, Frederik"]
[Result "0-1"]
[ECO "B41"]
[WhiteElo "2461"]
[BlackElo "2342"]
[Annotator "RC"]
[PlyCount "61"]
[EventDate "2019.05.25"]
[EventType "tourn"]
[EventCountry "GER"]
[Tiebreak "Number of wins+Number of black wins"]
[SourceTitle "playchess.com"]
[Source "ChessBase"]
[SourceQuality "1"]
[TimeControl "180+2"]

1. e4 {[%emt 0:00:00]} c5 {[%emt 0:00:00]} 2. Nf3 {[%emt 0:00:00]} e6 {[%emt 0:
00:00]} 3. d4 {[%emt 0:00:00]} cxd4 {[%emt 0:00:01]} 4. Nxd4 {[%emt 0:00:01]}
a6 {[%emt 0:00:00]} 5. c4 {[%emt 0:00:01]} Nf6 {[%emt 0:00:02]} 6. Nc3 {
[%emt 0:00:01]} Qc7 7. a3 d6 {[%emt 0:00:02]} 8. Be3 {[%emt 0:00:01]} b6 {
[%emt 0:00:04]} 9. Rc1 {[%emt 0:00:02]} Bb7 {[%emt 0:00:01]} 10. f3 {[%emt 0:
00:01]} Nbd7 {[%emt 0:00:02]} 11. Be2 {[%emt 0:00:01]} Rc8 {[%emt 0:00:02]} 12.
O-O {[%emt 0:00:01]} Qb8 {[%emt 0:00:01]} 13. Qd2 {[%emt 0:00:05]} Be7 {
[%emt 0:00:01]} 14. Rfd1 {[%emt 0:00:02]} h5 {[%emt 0:00:04]} 15. b4 {[%emt 0:
00:02]} Bd8 {[%emt 0:00:02]} 16. Nb3 {[%emt 0:00:02]} Bc7 {[%emt 0:00:03]} 17.
Bf4 {[%emt 0:00:02]} Ne5 {[%emt 0:00:08]} 18. Bxe5 {[%emt 0:00:01]} dxe5 {
[%emt 0:00:01]} 19. c5 {[%emt 0:00:01]} b5 {[%emt 0:00:35]} 20. a4 {[%emt 0:00:
08]} Bc6 {[%emt 0:00:02]} 21. axb5 {[%emt 0:00:02]} axb5 {[%emt 0:00:04]} 22.
Bf1 {[%emt 0:00:09]} Qb7 {[%emt 0:00:27]} 23. Qe2 {[%emt 0:00:01]} Rb8 {
[%emt 0:00:02]} 24. Ra1 {[%emt 0:00:01]} O-O {[%emt 0:00:07]} 25. Na5 {[%emt 0:
00:00]} Bxa5 {[%emt 0:00:06]} 26. Rxa5 {[%emt 0:00:01]} Ra8 {[%emt 0:00:48]}
27. Rda1 {[%emt 0:00:05]} Rxa5 {[%emt 0:00:57]} 28. Rxa5 {[%emt 0:00:01]} Rb8 {
[%emt 0:00:08]} 29. Nxb5 {[%emt 0:00:06]} Qd7 {[%emt 0:00:02]} 30. Qd3 {
[%emt 0:00:06]} Bxb5 {[%emt 0:00:04]} 31. Rxb5 {[%emt 0:00:03]} 0-1

[Event "GER-ch Blitz 2019"]
[Site "Magdeburg"]
[Date "2019.05.25"]
[Round "3.4"]
[White "Heidrich, Manfred"]
[Black "Stein, Robert"]
[Result "0-1"]
[ECO "C45"]
[WhiteElo "2351"]
[BlackElo "2318"]
[Annotator "NA"]
[PlyCount "54"]
[EventDate "2019.05.25"]
[EventType "tourn"]
[EventCountry "GER"]
[Tiebreak "Number of wins+Number of black wins"]
[SourceTitle "playchess.com"]
[Source "ChessBase"]
[SourceQuality "1"]
[TimeControl "180+2"]

1. e4 {[%emt 0:00:00]} e5 {[%emt 0:00:00]} 2. Nf3 {[%emt 0:00:01]} Nc6 {
[%emt 0:00:00]} 3. d4 {[%emt 0:00:01]} exd4 {[%emt 0:00:00]} 4. Nxd4 {[%emt 0:
00:00]} Bc5 {[%emt 0:00:01]} 5. Nxc6 {[%emt 0:00:02]} Qf6 {[%emt 0:00:11]} 6.
Qf3 {[%emt 0:00:01]} dxc6 {[%emt 0:00:02]} 7. Bd3 {[%emt 0:00:08]} Be6 {
[%emt 0:00:05]} 8. Nd2 {[%emt 0:00:06]} O-O-O {[%emt 0:00:15]} 9. Qxf6 {
[%emt 0:00:08]} Nxf6 {[%emt 0:00:01]} 10. h3 {[%emt 0:00:02]} Rhe8 {[%emt 0:00:
05]} 11. O-O {[%emt 0:00:02]} Nd7 {[%emt 0:00:01]} 12. Nb3 {[%emt 0:00:07]} Bb6
{[%emt 0:00:05]} 13. Re1 {[%emt 0:00:01]} Ne5 {[%emt 0:00:03]} 14. Bf1 {
[%emt 0:00:04]} Bc4 {[%emt 0:00:22]} 15. Nd2 {[%emt 0:00:10]} Bxf1 {[%emt 0:00:
04]} 16. Kxf1 {[%emt 0:00:05]} Rd7 {[%emt 0:00:05]} 17. Nb3 {[%emt 0:00:20]}
Nc4 {[%emt 0:00:04]} 18. Rb1 {[%emt 0:00:05]} Rde7 {[%emt 0:00:06]} 19. f3 {
[%emt 0:00:06]} h6 {[%emt 0:00:23]} 20. Nd2 {[%emt 0:00:04]} Nd6 {[%emt 0:00:
08]} 21. b3 {[%emt 0:00:22]} f5 {[%emt 0:00:04]} 22. Ba3 {[%emt 0:00:00]} fxe4
{[%emt 0:00:08]} 23. Bxd6 {[%emt 0:00:34]} cxd6 {[%emt 0:00:01]} 24. Nxe4 {
[%emt 0:00:08]} Bc7 {[%emt 0:00:01]} 25. c4 {[%emt 0:00:07]} d5 {[%emt 0:00:15]
} 26. cxd5 {[%emt 0:00:01]} cxd5 {[%emt 0:00:00]} 27. Nc3 {[%emt 0:00:08]}
Rxe1+ {[%emt 0:00:02]} 0-1

[Event "GER-ch Blitz 2019"]
[Site "Magdeburg"]
[Date "2019.05.25"]
[Round "3.5"]
[White "Zuyev, Igor"]
[Black "Kirchner, Thomas"]
[Result "1-0"]
[ECO "C44"]
[WhiteElo "2447"]
[BlackElo "2311"]
[Annotator "NA RC"]
[PlyCount "39"]
[EventDate "2019.05.25"]
[EventType "tourn"]
[EventCountry "GER"]
[Tiebreak "Number of wins+Number of black wins"]
[SourceTitle "playchess.com"]
[Source "ChessBase"]
[SourceQuality "1"]
[TimeControl "180+2"]

1. e4 {[%emt 0:00:00]} e5 {[%emt 0:00:00]} 2. Nf3 {[%emt 0:00:00]} Nc6 {
[%emt 0:00:00]} 3. d4 {[%emt 0:00:01]} exd4 {[%emt 0:00:00]} 4. Bc4 {[%emt 0:
00:01]} Bc5 {[%emt 0:00:01]} 5. c3 {[%emt 0:00:13]} d3 {[%emt 0:00:01]} 6. b4 {
[%emt 0:00:08]} Bb6 {[%emt 0:00:02]} 7. a4 {[%emt 0:00:04]} a6 {[%emt 0:00:01]}
8. O-O {[%emt 0:00:05]} d6 {[%emt 0:00:01]} 9. Qb3 {[%emt 0:00:12]} Qf6 {
[%emt 0:00:13]} 10. a5 {[%emt 0:00:05]} Ba7 {[%emt 0:00:03]} 11. b5 {[%emt 0:
00:04]} axb5 {[%emt 0:00:16]} 12. a6 {[%emt 0:00:17]} bxa6 {[%emt 0:00:30]} 13.
Bd5 {[%emt 0:00:04]} Nge7 {[%emt 0:00:08]} 14. Bg5 {[%emt 0:00:07]} Qg6 {
[%emt 0:00:46]} 15. Bxe7 {[%emt 0:00:06]} Kxe7 {[%emt 0:00:01]} 16. Bxc6 {
[%emt 0:00:05]} Rb8 {[%emt 0:00:03]} 17. Kh1 {[%emt 0:00:07]} Rb6 {[%emt 0:00:
16]} 18. Nd4 {[%emt 0:00:08]} Be6 {[%emt 0:00:21]} 19. Qd1 {[%emt 0:00:07]} Qh5
{[%emt 0:00:17]} 20. Qxh5 {[%emt 0:00:15]} 1-0

[Event "GER-ch Blitz 2019"]
[Site "Magdeburg"]
[Date "2019.05.25"]
[Round "3.6"]
[White "Kopylov, Michael"]
[Black "Frischmann, Rick"]
[Result "0-1"]
[ECO "D07"]
[WhiteElo "2413"]
[BlackElo "2320"]
[Annotator "NA"]
[PlyCount "70"]
[EventDate "2019.05.25"]
[EventType "tourn"]
[EventCountry "GER"]
[Tiebreak "Number of wins+Number of black wins"]
[SourceTitle "playchess.com"]
[Source "ChessBase"]
[SourceQuality "1"]
[TimeControl "180+2"]

1. d4 {[%emt 0:00:00]} d5 {[%emt 0:00:00]} 2. c4 {[%emt 0:00:00]} Nc6 {[%emt 0:
00:00]} 3. Nc3 {[%emt 0:00:01]} Nf6 {[%emt 0:00:01]} 4. cxd5 {[%emt 0:00:02]}
Nxd5 {[%emt 0:00:01]} 5. Nf3 {[%emt 0:00:01]} e5 {[%emt 0:00:01]} 6. e3 {
[%emt 0:00:14]} exd4 {[%emt 0:00:10]} 7. exd4 {[%emt 0:00:01]} Bb4 {[%emt 0:00:
13]} 8. Bd2 {[%emt 0:00:07]} O-O {[%emt 0:00:02]} 9. Bd3 {[%emt 0:00:02]} Re8+
{[%emt 0:00:01]} 10. Kf1 {[%emt 0:00:36]} Nf6 {[%emt 0:00:10]} 11. Bg5 {
[%emt 0:00:29]} Be7 {[%emt 0:00:01]} 12. h3 {[%emt 0:00:07]} h6 {[%emt 0:00:06]
} 13. Bh4 {[%emt 0:00:02]} Nd5 {[%emt 0:00:16]} 14. Bg3 {[%emt 0:00:06]} Ndb4 {
[%emt 0:00:11]} 15. Bc4 {[%emt 0:00:08]} Bf6 {[%emt 0:00:05]} 16. a3 {[%emt 0:
00:05]} Na6 {[%emt 0:00:21]} 17. Ne5 {[%emt 0:00:59]} Bxe5 {[%emt 0:00:22]} 18.
dxe5 {[%emt 0:00:01]} Be6 {[%emt 0:00:00]} 19. Be2 {[%emt 0:00:22]} Nd4 {
[%emt 0:00:02]} 20. Kg1 {[%emt 0:00:02]} Nb3 {[%emt 0:00:11]} 21. Rb1 {[%emt 0:
00:07]} Qe7 {[%emt 0:00:01]} 22. Qc2 {[%emt 0:00:02]} Rad8 {[%emt 0:00:02]} 23.
Kh2 {[%emt 0:00:01]} Rd2 {[%emt 0:00:02]} 24. Qe4 {[%emt 0:00:03]} Nac5 {
[%emt 0:00:01]} 25. Qb4 {[%emt 0:00:03]} a5 {[%emt 0:00:03]} 26. Qf4 {[%emt 0:
00:03]} Red8 {[%emt 0:00:24]} 27. Rhd1 {[%emt 0:00:02]} Nd3 {[%emt 0:00:34]}
28. Bxd3 {[%emt 0:00:04]} R2xd3 {[%emt 0:00:01]} 29. Rxd3 {[%emt 0:00:02]} Rxd3
{[%emt 0:00:01]} 30. Qe4 {[%emt 0:00:02]} Nc5 {[%emt 0:00:08]} 31. Qf4 {
[%emt 0:00:03]} Qd7 {[%emt 0:00:04]} 32. Ne4 Nxe4 33. Qxe4 Bf5 34. Qxb7 Rxg3
35. fxg3 Bxb1 0-1

[Event "GER-ch Blitz 2019"]
[Site "Magdeburg"]
[Date "2019.05.25"]
[Round "3.7"]
[White "Hirneise, Jens"]
[Black "Ehmann, Thilo"]
[Result "1-0"]
[ECO "B47"]
[WhiteElo "2375"]
[BlackElo "2291"]
[Annotator "NA"]
[PlyCount "93"]
[EventDate "2019.05.25"]
[EventType "tourn"]
[EventCountry "GER"]
[Tiebreak "Number of wins+Number of black wins"]
[SourceTitle "playchess.com"]
[Source "ChessBase"]
[SourceQuality "1"]
[TimeControl "180+2"]

1. e4 {[%emt 0:00:00]} c5 {[%emt 0:00:00]} 2. Nf3 {[%emt 0:00:00]} e6 {[%emt 0:
00:00]} 3. Nc3 {[%emt 0:00:01]} Nc6 {[%emt 0:00:03]} 4. d4 {[%emt 0:00:00]}
cxd4 5. Nxd4 {[%emt 0:00:01]} Qc7 {[%emt 0:00:10]} 6. Be2 {[%emt 0:00:02]} a6 {
[%emt 0:00:02]} 7. a3 {[%emt 0:00:00]} Nf6 {[%emt 0:00:02]} 8. f4 {[%emt 0:00:
04]} d6 {[%emt 0:00:04]} 9. Be3 {[%emt 0:00:01]} Be7 {[%emt 0:00:01]} 10. g4 {
[%emt 0:00:07]} b5 {[%emt 0:00:11]} 11. g5 {[%emt 0:00:05]} Nd7 {[%emt 0:00:00]
} 12. Nxc6 {[%emt 0:00:05]} Qxc6 {[%emt 0:00:02]} 13. Qd4 {[%emt 0:00:01]} e5 {
[%emt 0:00:38]} 14. Qd2 {[%emt 0:00:07]} Nb6 {[%emt 0:00:09]} 15. Bxb6 Qxb6 16.
Nd5 {[%emt 0:00:12]} Qd8 {[%emt 0:00:05]} 17. O-O-O {[%emt 0:00:08]} Bb7 {
[%emt 0:00:15]} 18. Nxe7 {[%emt 0:00:12]} Qxe7 {[%emt 0:00:01]} 19. Qxd6 {
[%emt 0:00:11]} Qxd6 {[%emt 0:00:01]} 20. Rxd6 {[%emt 0:00:01]} exf4 {[%emt 0:
00:02]} 21. Bd3 {[%emt 0:00:11]} h6 {[%emt 0:00:34]} 22. gxh6 {[%emt 0:00:02]}
Rxh6 {[%emt 0:00:04]} 23. Rxh6 {[%emt 0:00:03]} gxh6 {[%emt 0:00:00]} 24. Rf1 {
[%emt 0:00:01]} Ke7 {[%emt 0:00:01]} 25. Rxf4 {[%emt 0:00:02]} Rg8 {[%emt 0:00:
01]} 26. Rh4 {[%emt 0:00:05]} Rg6 {[%emt 0:00:08]} 27. Kd2 {[%emt 0:00:01]} Re6
{[%emt 0:00:02]} 28. Kc3 {[%emt 0:00:05]} Rc6+ {[%emt 0:00:04]} 29. Kb4 {
[%emt 0:00:06]} Re6 {[%emt 0:00:04]} 30. b3 {[%emt 0:00:11]} Kd6 {[%emt 0:00:
09]} 31. Rf4 {[%emt 0:00:06]} Ke7 {[%emt 0:00:11]} 32. a4 {[%emt 0:00:04]} Re5
{[%emt 0:00:13]} 33. axb5 {[%emt 0:00:08]} axb5 {[%emt 0:00:02]} 34. Bxb5 {
[%emt 0:00:13]} Bxe4 {[%emt 0:00:02]} 35. c4 {[%emt 0:00:02]} f5 {[%emt 0:00:
03]} 36. c5 {[%emt 0:00:03]} Kf6 {[%emt 0:00:07]} 37. c6 {[%emt 0:00:17]} Re7 {
[%emt 0:00:07]} 38. Kc5 {[%emt 0:00:04]} Ke5 {[%emt 0:00:01]} 39. Rh4 {[%emt 0:
00:09]} Rh7 {[%emt 0:00:12]} 40. Kb6 {[%emt 0:00:06]} Kd6 {[%emt 0:00:03]} 41.
c7 {[%emt 0:00:07]} Rh8 {[%emt 0:00:10]} 42. Rxh6+ {[%emt 0:00:17]} Rxh6 {
[%emt 0:00:03]} 43. c8=Q {[%emt 0:00:02]} Ke5+ {[%emt 0:00:09]} 44. Kc5 {
[%emt 0:00:03]} Kf4 {[%emt 0:00:03]} 45. Qc7+ {[%emt 0:00:04]} Ke3 {[%emt 0:00:
06]} 46. Qg3+ {[%emt 0:00:03]} Bf3 {[%emt 0:00:02]} 47. Qg5+ {[%emt 0:00:04]}
1-0

[Event "GER-ch Blitz 2019"]
[Site "Magdeburg"]
[Date "2019.05.25"]
[Round "3.11"]
[White "Schneider, Ilja"]
[Black "Koch, Thomas"]
[Result "1/2-1/2"]
[ECO "B22"]
[WhiteElo "2494"]
[BlackElo "2474"]
[Annotator "RC"]
[PlyCount "150"]
[EventDate "2019.05.25"]
[EventType "tourn"]
[EventCountry "GER"]
[Tiebreak "Number of wins+Number of black wins"]
[SourceTitle "playchess.com"]
[Source "ChessBase"]
[SourceQuality "1"]
[TimeControl "180+2"]

1. e4 {[%emt 0:00:00]} c5 {[%emt 0:00:00]} 2. c3 {[%emt 0:00:00]} d5 {[%emt 0:
00:00]} 3. exd5 {[%emt 0:00:01]} Qxd5 {[%emt 0:00:00]} 4. Nf3 {[%emt 0:00:01]}
e6 {[%emt 0:00:01]} 5. Na3 {[%emt 0:00:01]} Qd8 {[%emt 0:00:01]} 6. Nc2 {
[%emt 0:00:01]} Nf6 {[%emt 0:00:03]} 7. d4 {[%emt 0:00:01]} Nc6 {[%emt 0:00:01]
} 8. Be2 {[%emt 0:00:01]} Be7 {[%emt 0:00:01]} 9. O-O {[%emt 0:00:02]} O-O {
[%emt 0:00:02]} 10. Be3 {[%emt 0:00:03]} cxd4 {[%emt 0:00:03]} 11. Nfxd4 {
[%emt 0:00:03]} Bd7 {[%emt 0:00:04]} 12. Bf3 {[%emt 0:00:03]} Ne5 {[%emt 0:00:
17]} 13. Be2 {[%emt 0:00:20]} Rc8 {[%emt 0:00:05]} 14. Nf3 {[%emt 0:00:10]} Nc6
{[%emt 0:00:08]} 15. Ncd4 {[%emt 0:00:10]} Nxd4 {[%emt 0:00:06]} 16. Bxd4 {
[%emt 0:00:05]} a6 {[%emt 0:00:08]} 17. Ne5 {[%emt 0:00:02]} Qc7 {[%emt 0:00:
09]} 18. Nxd7 {[%emt 0:00:05]} Nxd7 {[%emt 0:00:04]} 19. Bf3 {[%emt 0:00:07]}
Bc5 {[%emt 0:00:02]} 20. Re1 {[%emt 0:00:06]} Rfd8 {[%emt 0:00:02]} 21. Qb3 {
[%emt 0:00:20]} Bxd4 {[%emt 0:00:05]} 22. cxd4 {[%emt 0:00:01]} Nb6 {[%emt 0:
00:02]} 23. g3 {[%emt 0:00:21]} Nd5 {[%emt 0:00:01]} 24. Kg2 {[%emt 0:00:06]}
g6 {[%emt 0:00:08]} 25. h4 {[%emt 0:00:10]} h5 {[%emt 0:00:02]} 26. Rac1 {
[%emt 0:00:11]} Qd7 {[%emt 0:00:02]} 27. Bxd5 {[%emt 0:00:12]} Rxc1 {[%emt 0:
00:18]} 28. Bxe6 {[%emt 0:00:44]} Qc6+ {[%emt 0:00:00]} 29. Bd5 {[%emt 0:00:04]
} Rxd5 {[%emt 0:00:04]} 30. Rxc1 {[%emt 0:00:01]} Rc5+ {[%emt 0:00:09]} 31. d5
{[%emt 0:00:01]} Qxd5+ {[%emt 0:00:01]} 32. Qxd5 Rxd5 {[%emt 0:00:01]} 33. Rc7
{[%emt 0:00:02]} Rb5 {[%emt 0:00:01]} 34. b3 {[%emt 0:00:01]} Kg7 {[%emt 0:00:
04]} 35. Kf3 {[%emt 0:00:00]} Rb4 {[%emt 0:00:01]} 36. Ke3 {[%emt 0:00:01]} Kf6
{[%emt 0:00:01]} 37. Kd3 {[%emt 0:00:01]} Ke6 {[%emt 0:00:02]} 38. Kc3 {
[%emt 0:00:00]} Rb5 {[%emt 0:00:01]} 39. a4 {[%emt 0:00:02]} Rb6 {[%emt 0:00:
01]} 40. Kc4 {[%emt 0:00:03]} a5 {[%emt 0:00:01]} 41. Rc5 {[%emt 0:00:04]} Rb4+
{[%emt 0:00:16]} 42. Kc3 {[%emt 0:00:02]} b6 {[%emt 0:00:00]} 43. Rc4 {[%emt 0:
00:04]} Rxc4+ {[%emt 0:00:02]} 44. Kxc4 {[%emt 0:00:01]} Kd6 {[%emt 0:00:01]}
45. Kb5 {[%emt 0:00:03]} Kc7 {[%emt 0:00:01]} 46. f3 {[%emt 0:00:06]} Kb7 {
[%emt 0:00:09]} 47. g4 {[%emt 0:00:10]} Kc7 {[%emt 0:00:02]} 48. g5 {[%emt 0:
00:10]} Kb7 {[%emt 0:00:00]} 49. f4 {[%emt 0:00:03]} Kc7 {[%emt 0:00:01]} 50.
Kc4 {[%emt 0:00:00]} Kc6 {[%emt 0:00:02]} 51. Kd4 {[%emt 0:00:01]} Kd6 {
[%emt 0:00:02]} 52. Ke4 {[%emt 0:00:02]} Ke6 {[%emt 0:00:05]} 53. f5+ {[%emt 0:
00:03]} Kd6 {[%emt 0:00:04]} 54. fxg6 {[%emt 0:00:01]} fxg6 {[%emt 0:00:01]}
55. Kd4 {[%emt 0:00:01]} Ke6 {[%emt 0:00:01]} 56. Kc4 {[%emt 0:00:05]} Kf5 {
[%emt 0:00:13]} 57. Kb5 {[%emt 0:00:01]} Kg4 {[%emt 0:00:00]} 58. Kxb6 {
[%emt 0:00:00]} Kxh4 {[%emt 0:00:01]} 59. Kxa5 {[%emt 0:00:04]} Kxg5 {[%emt 0:
00:03]} 60. b4 {[%emt 0:00:01]} h4 {[%emt 0:00:01]} 61. b5 {[%emt 0:00:00]} h3
{[%emt 0:00:00]} 62. b6 {[%emt 0:00:01]} h2 {[%emt 0:00:01]} 63. b7 {[%emt 0:
00:01]} h1=Q {[%emt 0:00:03]} 64. b8=Q {[%emt 0:00:00]} Qe1+ {[%emt 0:00:05]}
65. Qb4 {[%emt 0:00:01]} Qe5+ {[%emt 0:00:06]} 66. Qb5 {[%emt 0:00:01]} Kf4 {
[%emt 0:00:01]} 67. Kb4 {[%emt 0:00:07]} Qd6+ {[%emt 0:00:05]} 68. Qc5 {
[%emt 0:00:01]} Qd2+ {[%emt 0:00:01]} 69. Kb5 {[%emt 0:00:02]} Qd7+ {[%emt 0:
00:04]} 70. Qc6 {[%emt 0:00:03]} Qxc6+ {[%emt 0:00:22]} 71. Kxc6 {[%emt 0:00:
00]} g5 {[%emt 0:00:01]} 72. a5 {[%emt 0:00:01]} g4 {[%emt 0:00:01]} 73. a6 {
[%emt 0:00:00]} g3 {[%emt 0:00:01]} 74. a7 {[%emt 0:00:01]} g2 {[%emt 0:00:01]}
75. a8=Q {[%emt 0:00:01]} g1=Q 1/2-1/2

[Event "GER-ch Blitz 2019"]
[Site "Magdeburg"]
[Date "2019.05.25"]
[Round "3.12"]
[White "Wichmann, Cliff"]
[Black "Krause, Benedict"]
[Result "1/2-1/2"]
[ECO "D85"]
[WhiteElo "2280"]
[BlackElo "2434"]
[Annotator "NA"]
[PlyCount "40"]
[EventDate "2019.05.25"]
[EventType "tourn"]
[EventCountry "GER"]
[Tiebreak "Number of wins+Number of black wins"]
[SourceTitle "playchess.com"]
[Source "ChessBase"]
[SourceQuality "1"]
[TimeControl "180+2"]

1. Nf3 {[%emt 0:00:00]} Nf6 {[%emt 0:00:00]} 2. d4 {[%emt 0:00:02]} g6 {
[%emt 0:00:00]} 3. c4 {[%emt 0:00:01]} Bg7 {[%emt 0:00:01]} 4. Nc3 {[%emt 0:00:
01]} d5 {[%emt 0:00:01]} 5. cxd5 {[%emt 0:00:07]} Nxd5 {[%emt 0:00:01]} 6. e4 {
[%emt 0:00:00]} Nxc3 {[%emt 0:00:02]} 7. bxc3 {[%emt 0:00:01]} c5 {[%emt 0:00:
03]} 8. Rb1 {[%emt 0:00:01]} O-O {[%emt 0:00:01]} 9. Be2 {[%emt 0:00:00]} Nc6 {
[%emt 0:00:04]} 10. d5 {[%emt 0:00:01]} Ne5 {[%emt 0:00:00]} 11. Nxe5 {[%emt 0:
00:01]} Bxe5 {[%emt 0:00:02]} 12. c4 {[%emt 0:00:10]} f5 {[%emt 0:00:11]} 13.
exf5 {[%emt 0:00:22]} Rxf5 {[%emt 0:00:34]} 14. O-O {[%emt 0:00:25]} b6 {
[%emt 0:00:28]} 15. Bb2 {[%emt 0:00:06]} Bxb2 {[%emt 0:00:30]} 16. Rxb2 {
[%emt 0:00:02]} Qd6 {[%emt 0:00:03]} 17. Rb3 {[%emt 0:00:12]} Bd7 {[%emt 0:00:
05]} 18. Re3 {[%emt 0:00:11]} Re5 {[%emt 0:00:02]} 19. Qd2 {[%emt 0:00:03]}
Rxe3 {[%emt 0:00:03]} 20. Qxe3 {[%emt 0:00:01]} Rf8 {[%emt 0:00:01]} 1/2-1/2